[Event "Live Chess"]
[Site "Chess.com"]
[Date "2024.06.01"]
[Round "-"]
[White "A3ndrey9"]
[Black "Mikhail_Golubev"]
[Result "0-1"]
[WhiteElo "1281"]
[BlackElo "2584"]
[TimeControl "300"]
[EndTime "15:29:46 PDT"]
[Termination "Mikhail_Golubev won on time"]

1. Nf3 {[%clk 0:04:58.7]} 1... g6 {[%clk 0:04:54.7]} 2. d4 {[%clk 0:04:57.9]}
2... Bg7 {[%clk 0:04:53.1]} 3. c4 {[%clk 0:04:56.6]} 3... c5 {[%clk 0:04:49.9]}
4. g3 {[%clk 0:04:51.1]} 4... cxd4 {[%clk 0:04:45.1]} 5. Nxd4 {[%clk 0:04:49.3]}
5... Nc6 {[%clk 0:04:29.6]} 6. Nxc6 {[%clk 0:04:46.4]} 6... bxc6 {[%clk
0:04:29.5]} 7. Bg2 {[%clk 0:04:45.4]} 7... Nf6 {[%clk 0:04:27.8]} 8. O-O {[%clk
0:04:43.6]} 8... O-O {[%clk 0:04:23.7]} 9. Nc3 {[%clk 0:04:38.5]} 9... a5 {[%clk
0:02:09.7]} 10. Bf4 {[%clk 0:04:17]} 10... d6 {[%clk 0:01:37.8]} 11. Bxc6 {[%clk
0:03:54.7]} 11... Rb8 {[%clk 0:01:36.8]} 12. Rb1 {[%clk 0:03:06.2]} 12... Bh3
{[%clk 0:01:34.2]} 13. Bg2 {[%clk 0:03:00.7]} 13... Bxg2 {[%clk 0:01:32.7]} 14.
Kxg2 {[%clk 0:03:00]} 14... Qc8 {[%clk 0:01:19.4]} 15. Nd5 {[%clk 0:02:46.4]}
15... Nxd5 {[%clk 0:01:14.8]} 16. cxd5 {[%clk 0:02:41.9]} 16... Rxb2 {[%clk
0:00:51.6]} 17. Rxb2 {[%clk 0:02:36.9]} 17... Bxb2 {[%clk 0:00:51.5]} 18. Bh6
{[%clk 0:02:32.7]} 18... Re8 {[%clk 0:00:49.1]} 19. e4 {[%clk 0:02:22.8]} 19...
Qc4 {[%clk 0:00:41.3]} 20. Qb1 {[%clk 0:02:12.2]} 20... Bd4 {[%clk 0:00:24.1]}
21. Qb3 {[%clk 0:01:53.6]} 21... Qxb3 {[%clk 0:00:20.9]} 22. axb3 {[%clk
0:01:52.6]} 22... Rb8 {[%clk 0:00:20.1]} 23. Rb1 {[%clk 0:01:41.2]} 23... a4
{[%clk 0:00:18.3]} 24. b4 {[%clk 0:01:33.4]} 24... a3 {[%clk 0:00:17]} 25. b5
{[%clk 0:00:19.2]} 25... a2 {[%clk 0:00:15.9]} 26. Rc1 {[%clk 0:00:18.6]} 26...
a1=Q {[%clk 0:00:15.2]} 27. Rc7 {[%clk 0:00:13.9]} 27... Qb1 {[%clk 0:00:11.9]}
28. Rxe7 {[%clk 0:00:10]} 28... Qc2 {[%clk 0:00:10.9]} 29. Kh3 {[%clk
0:00:05.9]} 29... Qxf2 {[%clk 0:00:09.8]} 30. b6 {[%clk 0:00:02.1]} 30... Qf1+
{[%clk 0:00:09.3]} 0-1

[Event "Live Chess"]
[Site "Chess.com"]
[Date "2024.06.01"]
[Round "-"]
[White "gobbles19"]
[Black "Cruiseylee78"]
[Result "1-0"]
[WhiteElo "2291"]
[BlackElo "1693"]
[TimeControl "300"]
[EndTime "15:30:07 PDT"]
[Termination "gobbles19 won on time"]

1. e4 {[%clk 0:04:57.2]} 1... d6 {[%clk 0:04:54]} 2. d4 {[%clk 0:04:56.2]} 2...
Nd7 {[%clk 0:04:52.9]} 3. Nf3 {[%clk 0:04:52.4]} 3... e6 {[%clk 0:04:52.1]} 4.
c4 {[%clk 0:04:49.4]} 4... e5 {[%clk 0:04:39.1]} 5. Nc3 {[%clk 0:04:44.4]} 5...
c6 {[%clk 0:04:37.3]} 6. Be2 {[%clk 0:04:43.1]} 6... Qc7 {[%clk 0:04:35.7]} 7.
O-O {[%clk 0:04:41.9]} 7... h6 {[%clk 0:04:34.6]} 8. Be3 {[%clk 0:04:39.3]} 8...
Ngf6 {[%clk 0:04:33.2]} 9. h3 {[%clk 0:04:38.7]} 9... g5 {[%clk 0:04:31.8]} 10.
Nh2 {[%clk 0:04:26.6]} 10... Be7 {[%clk 0:04:17.6]} 11. b4 {[%clk 0:04:23.6]}
11... d5 {[%clk 0:03:16.9]} 12. cxd5 {[%clk 0:04:19.9]} 12... Bxb4 {[%clk
0:03:08.5]} 13. dxc6 {[%clk 0:04:10.7]} 13... bxc6 {[%clk 0:03:04.6]} 14. Rc1
{[%clk 0:03:51.5]} 14... Qa5 {[%clk 0:02:56.4]} 15. dxe5 {[%clk 0:03:44.9]}
15... Nxe5 {[%clk 0:02:51.3]} 16. Bd4 {[%clk 0:03:35.2]} 16... O-O {[%clk
0:02:45.8]} 17. a3 {[%clk 0:03:08.9]} 17... Bxa3 {[%clk 0:02:40.4]} 18. Ra1
{[%clk 0:03:04.1]} 18... Rd8 {[%clk 0:02:34.2]} 19. Nb1 {[%clk 0:02:37.3]} 19...
Qb4 {[%clk 0:02:26.9]} 20. Nxa3 {[%clk 0:02:05.9]} 20... Rxd4 {[%clk 0:02:22.3]}
21. Qc1 {[%clk 0:02:01.8]} 21... Rxe4 {[%clk 0:02:19.4]} 22. Nc2 {[%clk
0:01:54.8]} 22... Qb3 {[%clk 0:02:06.6]} 23. Ne3 {[%clk 0:01:52.6]} 23... Nd5
{[%clk 0:01:58.4]} 24. Rb1 {[%clk 0:01:44]} 24... Qc3 {[%clk 0:01:46.3]} 25.
Nxd5 {[%clk 0:01:21.6]} 25... Qxc1 {[%clk 0:01:38.3]} 26. Nf6+ {[%clk
0:01:05.8]} 26... Kg7 {[%clk 0:01:32.7]} 27. Rfxc1 {[%clk 0:01:04.5]} 27... Kxf6
{[%clk 0:01:29.4]} 28. Kf1 {[%clk 0:00:56.8]} 28... a5 {[%clk 0:01:26]} 29. Nf3
{[%clk 0:00:55.4]} 29... Nxf3 {[%clk 0:01:18.9]} 30. Bxf3 {[%clk 0:00:54.4]}
30... Ba6+ {[%clk 0:01:15.3]} 31. Kg1 {[%clk 0:00:52.7]} 31... Rc4 {[%clk
0:01:11]} 32. Rxc4 {[%clk 0:00:48.1]} 32... Bxc4 {[%clk 0:01:08.5]} 33. Bxc6
{[%clk 0:00:47.8]} 33... Ra6 {[%clk 0:01:04.4]} 34. Ba4 {[%clk 0:00:46.1]} 34...
Ke5 {[%clk 0:01:01.5]} 35. Rd1 {[%clk 0:00:40.8]} 35... Rb6 {[%clk 0:00:57.7]}
36. f3 {[%clk 0:00:33.5]} 36... Rb2 {[%clk 0:00:52.6]} 37. Ra1 {[%clk
0:00:29.3]} 37... Kf5 {[%clk 0:00:48.4]} 38. Kh2 {[%clk 0:00:27.4]} 38... Be6
{[%clk 0:00:42.5]} 39. Kg3 {[%clk 0:00:25.4]} 39... h5 {[%clk 0:00:39.5]} 40.
Ra3 {[%clk 0:00:18.4]} 40... h4+ {[%clk 0:00:35.6]} 41. Kh2 {[%clk 0:00:17.8]}
41... Kf4 {[%clk 0:00:31.5]} 42. Bc6 {[%clk 0:00:16.6]} 42... Ra2 {[%clk
0:00:26.8]} 43. Rc3 {[%clk 0:00:14]} 43... a4 {[%clk 0:00:22.4]} 44. Rd3 {[%clk
0:00:13.5]} 44... Ke5 {[%clk 0:00:19.1]} 45. Re3+ {[%clk 0:00:12.7]} 45... Kd6
{[%clk 0:00:15.4]} 46. Bb5 {[%clk 0:00:12.1]} 46... a3 {[%clk 0:00:08.3]} 47.
Rd3+ {[%clk 0:00:09.9]} 47... Kc5 {[%clk 0:00:02.1]} 48. Ba4 {[%clk 0:00:09.4]}
48... Kb4 {[%clk 0:00:00.6]} 49. Bc6 {[%clk 0:00:08]} 1-0

[Event "Live Chess"]
[Site "Chess.com"]
[Date "2024.06.01"]
[Round "-"]
[White "f4nomore"]
[Black "NAZRIZ1977"]
[Result "0-1"]
[WhiteElo "1259"]
[BlackElo "2163"]
[TimeControl "300"]
[EndTime "15:30:47 PDT"]
[Termination "NAZRIZ1977 won by resignation"]

1. c4 {[%clk 0:04:54.8]} 1... g6 {[%clk 0:04:58.8]} 2. Nc3 {[%clk 0:04:52.7]}
2... Bg7 {[%clk 0:04:58.2]} 3. g3 {[%clk 0:04:48.1]} 3... Nf6 {[%clk 0:04:57.1]}
4. Bg2 {[%clk 0:04:46.9]} 4... O-O {[%clk 0:04:56.7]} 5. Nf3 {[%clk 0:04:45.7]}
5... c5 {[%clk 0:04:56.1]} 6. e3 {[%clk 0:04:44]} 6... d5 {[%clk 0:04:55.1]} 7.
cxd5 {[%clk 0:04:41.9]} 7... Nxd5 {[%clk 0:04:54.1]} 8. O-O {[%clk 0:04:39.2]}
8... Nc6 {[%clk 0:04:52.9]} 9. Ne4 {[%clk 0:04:25.6]} 9... b6 {[%clk 0:04:48.1]}
10. Nc3 {[%clk 0:04:18.6]} 10... Bb7 {[%clk 0:04:44.3]} 11. Qc2 {[%clk
0:04:07.4]} 11... Ndb4 {[%clk 0:04:38.2]} 12. Qb3 {[%clk 0:03:58.2]} 12... Na5
{[%clk 0:04:31.3]} 13. Qd1 {[%clk 0:03:54.7]} 13... Ba6 {[%clk 0:04:29.6]} 14.
a3 {[%clk 0:03:46.7]} 14... Nd3 {[%clk 0:04:18.2]} 15. Qc2 {[%clk 0:03:35.4]}
15... Nxc1 {[%clk 0:04:15.2]} 16. Raxc1 {[%clk 0:03:31.3]} 16... Bxf1 {[%clk
0:04:13.5]} 17. Rxf1 {[%clk 0:03:29.6]} 17... Rc8 {[%clk 0:04:09.3]} 18. Ne2
{[%clk 0:03:18.6]} 18... Qd7 {[%clk 0:04:05.5]} 19. b4 {[%clk 0:03:11.8]} 19...
cxb4 {[%clk 0:04:03.6]} 20. Qa4 {[%clk 0:03:03.7]} 20... Qxa4 {[%clk 0:04:00.6]}
0-1

[Event "Live Chess"]
[Site "Chess.com"]
[Date "2024.06.01"]
[Round "-"]
[White "peteopeteo"]
[Black "DJ_Lambton"]
[Result "0-1"]
[WhiteElo "1570"]
[BlackElo "1761"]
[TimeControl "300"]
[EndTime "15:30:49 PDT"]
[Termination "DJ_Lambton won by resignation"]

1. e4 {[%clk 0:04:56.3]} 1... c6 {[%clk 0:04:58.9]} 2. Nc3 {[%clk 0:04:55.2]}
2... d5 {[%clk 0:04:57.9]} 3. exd5 {[%clk 0:04:54.6]} 3... cxd5 {[%clk
0:04:57.8]} 4. d4 {[%clk 0:04:53.6]} 4... Nf6 {[%clk 0:04:57.4]} 5. Nf3 {[%clk
0:04:53.1]} 5... Bf5 {[%clk 0:04:56.2]} 6. Bd3 {[%clk 0:04:52.2]} 6... Bxd3
{[%clk 0:04:55.3]} 7. Qxd3 {[%clk 0:04:52.1]} 7... e6 {[%clk 0:04:55]} 8. O-O
{[%clk 0:04:49.7]} 8... Nc6 {[%clk 0:04:54.5]} 9. Bg5 {[%clk 0:04:48.5]} 9...
Be7 {[%clk 0:04:53.5]} 10. Rfe1 {[%clk 0:04:46.9]} 10... O-O {[%clk 0:04:52.3]}
11. Bh4 {[%clk 0:04:39.6]} 11... Rc8 {[%clk 0:04:50.4]} 12. Ne2 {[%clk
0:04:35.9]} 12... a6 {[%clk 0:04:49.4]} 13. c3 {[%clk 0:04:34.6]} 13... Qb6
{[%clk 0:04:46.1]} 14. b4 {[%clk 0:04:32]} 14... Qc7 {[%clk 0:04:43.2]} 15. Rac1
{[%clk 0:04:28.8]} 15... Na7 {[%clk 0:04:41.8]} 16. Ne5 {[%clk 0:04:18.3]} 16...
Nc6 {[%clk 0:04:39.6]} 17. Nxc6 {[%clk 0:04:05.1]} 17... Qxc6 {[%clk 0:04:39.5]}
18. Rc2 {[%clk 0:03:55.7]} 18... Qc4 {[%clk 0:04:37.2]} 19. Qxc4 {[%clk
0:03:54.3]} 19... Rxc4 {[%clk 0:04:37.1]} 20. Rec1 {[%clk 0:03:51.1]} 20... Rfc8
{[%clk 0:04:35.2]} 21. Bg3 {[%clk 0:03:27.8]} 21... Ne4 {[%clk 0:04:33.2]} 22.
f3 {[%clk 0:03:24.4]} 22... Nxg3 {[%clk 0:04:30.8]} 23. Nxg3 {[%clk 0:03:22.4]}
23... Bxb4 {[%clk 0:04:29.4]} 24. Ne2 {[%clk 0:03:19.3]} 24... Be7 {[%clk
0:04:27.8]} 25. Rb1 {[%clk 0:03:15.6]} 25... b5 {[%clk 0:04:25]} 26. Rb3 {[%clk
0:03:03.8]} 26... b4 {[%clk 0:04:21.5]} 27. a4 {[%clk 0:02:55.2]} 27... a5
{[%clk 0:04:12.5]} 28. Nf4 {[%clk 0:02:44.6]} 28... Rxc3 {[%clk 0:04:08.8]} 29.
Rcxc3 {[%clk 0:02:43.3]} 29... Rxc3 {[%clk 0:04:07.1]} 30. Rxc3 {[%clk
0:02:42.8]} 30... bxc3 {[%clk 0:04:07]} 31. Nd3 {[%clk 0:02:41.6]} 31... Bb4
{[%clk 0:04:04.6]} 32. Kf2 {[%clk 0:02:35.6]} 32... Kf8 {[%clk 0:04:03.7]} 33.
Ke2 {[%clk 0:02:34.8]} 33... Ke8 {[%clk 0:04:02.9]} 34. Kd1 {[%clk 0:02:31.9]}
34... Kd7 {[%clk 0:04:01.9]} 35. Kc2 {[%clk 0:02:31.1]} 35... f6 {[%clk
0:03:59.5]} 36. Nc5+ {[%clk 0:02:29.3]} 36... Bxc5 {[%clk 0:03:57.5]} 37. dxc5
{[%clk 0:02:29.2]} 37... Kc6 {[%clk 0:03:55.7]} 38. Kxc3 {[%clk 0:02:29.1]}
38... Kxc5 {[%clk 0:03:55.3]} 39. g4 {[%clk 0:02:27.4]} 39... e5 {[%clk
0:03:54.5]} 40. h4 {[%clk 0:02:26.1]} 40... g6 {[%clk 0:03:53.5]} 41. h5 {[%clk
0:02:25.1]} 41... f5 {[%clk 0:03:52.6]} 42. hxg6 {[%clk 0:02:25]} 42... hxg6
{[%clk 0:03:52]} 43. gxf5 {[%clk 0:02:24.2]} 43... gxf5 {[%clk 0:03:51.9]} 44.
f4 {[%clk 0:02:23.3]} 44... d4+ {[%clk 0:03:48.5]} 0-1

[Event "Live Chess"]
[Site "Chess.com"]
[Date "2024.06.01"]
[Round "-"]
[White "TheSmoulderingMaster"]
[Black "Duke_of_Bebington"]
[Result "1-0"]
[WhiteElo "1736"]
[BlackElo "1632"]
[TimeControl "300"]
[EndTime "15:30:56 PDT"]
[Termination "TheSmoulderingMaster won on time"]

1. e4 {[%clk 0:04:48.3]} 1... e5 {[%clk 0:04:58.8]} 2. Nf3 {[%clk 0:04:46.6]}
2... Nf6 {[%clk 0:04:57.9]} 3. Nxe5 {[%clk 0:04:44.6]} 3... d6 {[%clk
0:04:56.7]} 4. Nf3 {[%clk 0:04:43]} 4... Nxe4 {[%clk 0:04:56]} 5. Nc3 {[%clk
0:04:39.4]} 5... Nxc3 {[%clk 0:04:54.4]} 6. dxc3 {[%clk 0:04:38.6]} 6... Nc6
{[%clk 0:04:52.5]} 7. Bb5 {[%clk 0:04:37]} 7... Bd7 {[%clk 0:04:50.9]} 8. Be3
{[%clk 0:04:36.2]} 8... Be7 {[%clk 0:04:49.8]} 9. O-O {[%clk 0:04:35]} 9... O-O
{[%clk 0:04:48.8]} 10. Qd2 {[%clk 0:04:32.1]} 10... a6 {[%clk 0:04:47.3]} 11.
Ba4 {[%clk 0:04:30.5]} 11... Bf6 {[%clk 0:04:42.4]} 12. Rfe1 {[%clk 0:04:19.4]}
12... Ne5 {[%clk 0:04:34.6]} 13. Bb3 {[%clk 0:04:16]} 13... Nxf3+ {[%clk
0:04:32.1]} 14. gxf3 {[%clk 0:04:14.5]} 14... Bh3 {[%clk 0:04:21.4]} 15. Bf4
{[%clk 0:04:10.9]} 15... Qd7 {[%clk 0:03:58.8]} 16. Bg3 {[%clk 0:04:07.1]} 16...
c6 {[%clk 0:03:48.8]} 17. Rad1 {[%clk 0:04:02.7]} 17... d5 {[%clk 0:03:47.5]}
18. c4 {[%clk 0:03:59.6]} 18... d4 {[%clk 0:03:32.4]} 19. Qf4 {[%clk 0:03:54.4]}
19... Rad8 {[%clk 0:03:24.8]} 20. Bh4 {[%clk 0:03:46.7]} 20... Bxh4 {[%clk
0:03:17]} 21. Qxh4 {[%clk 0:03:45.6]} 21... Be6 {[%clk 0:03:13.8]} 22. Re5
{[%clk 0:03:41.6]} 22... g6 {[%clk 0:03:04.8]} 23. Rde1 {[%clk 0:03:37.5]} 23...
d3 {[%clk 0:03:00]} 24. cxd3 {[%clk 0:03:36]} 24... Qxd3 {[%clk 0:02:59.6]} 25.
c5 {[%clk 0:03:29.8]} 25... Bxb3 {[%clk 0:02:55]} 26. axb3 {[%clk 0:03:29]}
26... Qxf3 {[%clk 0:02:53.3]} 27. R5e3 {[%clk 0:03:27.2]} 27... Qd5 {[%clk
0:02:48.3]} 28. Rh3 {[%clk 0:03:24.2]} 28... h5 {[%clk 0:02:46.9]} 29. Rg3
{[%clk 0:03:21.2]} 29... Kh7 {[%clk 0:02:42.2]} 30. Qf6 {[%clk 0:03:14.3]} 30...
Rfe8 {[%clk 0:02:27.1]} 31. Rxe8 {[%clk 0:03:05.9]} 31... Rxe8 {[%clk 0:02:27]}
32. Rf3 {[%clk 0:03:00.6]} 32... Re1+ {[%clk 0:02:11.2]} 33. Kg2 {[%clk
0:02:59.2]} 33... Kh6 {[%clk 0:02:04.5]} 34. Qxf7 {[%clk 0:02:53.2]} 34... Re5
{[%clk 0:01:31.8]} 35. Qf8+ {[%clk 0:02:48.9]} 35... Kh7 {[%clk 0:01:22.3]} 36.
Qf7+ {[%clk 0:02:47.3]} 36... Kh6 {[%clk 0:01:21.4]} 37. Qf4+ {[%clk 0:02:36.3]}
37... Rg5+ {[%clk 0:01:16.3]} 38. Kh3 {[%clk 0:02:32.8]} 38... Qxc5 {[%clk
0:01:02.3]} 39. b4 {[%clk 0:02:23.7]} 39... Qf5+ {[%clk 0:00:53.2]} 40. Kh4
{[%clk 0:02:18.5]} 40... Qg4+ {[%clk 0:00:46.5]} 41. Qxg4 {[%clk 0:02:15]} 41...
Rxg4+ {[%clk 0:00:46.4]} 42. Kh3 {[%clk 0:02:13.4]} 42... Rxb4 {[%clk
0:00:46.1]} 43. Rf7 {[%clk 0:02:11.6]} 43... Rxb2 {[%clk 0:00:44.3]} 44. Rf6
{[%clk 0:02:08.9]} 44... a5 {[%clk 0:00:41.3]} 45. f4 {[%clk 0:02:08.1]} 45...
Rb5 {[%clk 0:00:39.6]} 46. Rf7 {[%clk 0:02:05.8]} 46... a4 {[%clk 0:00:37.1]}
47. Rf8 {[%clk 0:02:05]} 47... Kg7 {[%clk 0:00:35.1]} 48. Ra8 {[%clk 0:02:03.5]}
48... Rb4 {[%clk 0:00:29.3]} 49. Kg3 {[%clk 0:02:01]} 49... b5 {[%clk
0:00:27.2]} 50. Kf3 {[%clk 0:01:59]} 50... Rb3+ {[%clk 0:00:26.1]} 51. Ke4
{[%clk 0:01:57.8]} 51... Rb4+ {[%clk 0:00:22.3]} 52. Ke5 {[%clk 0:01:56.8]}
52... Rc4 {[%clk 0:00:21.6]} 53. Ra7+ {[%clk 0:01:54.4]} 53... Kf8 {[%clk
0:00:20.3]} 54. f5 {[%clk 0:01:51.1]} 54... gxf5 {[%clk 0:00:19.1]} 55. Kxf5
{[%clk 0:01:50.3]} 55... Rc5+ {[%clk 0:00:16]} 56. Kf6 {[%clk 0:01:49.3]} 56...
Ke8 {[%clk 0:00:14.7]} 57. Ke6 {[%clk 0:01:47]} 57... Kd8 {[%clk 0:00:14]} 58.
Kd6 {[%clk 0:01:46.2]} 58... Rd5+ {[%clk 0:00:10.5]} 59. Kxc6 {[%clk 0:01:44.5]}
59... Rd1 {[%clk 0:00:06.6]} 60. Kxb5 {[%clk 0:01:42.2]} 60... Rh1 {[%clk
0:00:03.5]} 61. Rxa4 {[%clk 0:01:37.5]} 61... Rxh2 {[%clk 0:00:03.4]} 62. Kc5
{[%clk 0:01:35.3]} 62... h4 {[%clk 0:00:03.3]} 63. Kd4 {[%clk 0:01:33.1]} 63...
Rf2 {[%clk 0:00:03.2]} 64. Ke3 {[%clk 0:01:32]} 64... Rg2 {[%clk 0:00:02.1]} 65.
Kf3 {[%clk 0:01:31]} 65... Rg3+ {[%clk 0:00:01.6]} 66. Kf2 {[%clk 0:01:29.8]}
1-0

[Event "Live Chess"]
[Site "Chess.com"]
[Date "2024.06.01"]
[Round "-"]
[White "Zhevzh1k7"]
[Black "Mangoalo"]
[Result "0-1"]
[WhiteElo "1098"]
[BlackElo "1069"]
[TimeControl "300"]
[EndTime "15:30:58 PDT"]
[Termination "Mangoalo won by checkmate"]

1. e4 {[%clk 0:04:57.9]} 1... c5 {[%clk 0:04:49.5]} 2. Nf3 {[%clk 0:04:55.8]}
2... Nc6 {[%clk 0:04:49]} 3. d4 {[%clk 0:04:54.9]} 3... cxd4 {[%clk 0:04:48.9]}
4. Nxd4 {[%clk 0:04:53.5]} 4... Nf6 {[%clk 0:04:48.3]} 5. Nc3 {[%clk 0:04:51]}
5... a6 {[%clk 0:04:47.5]} 6. Bc4 {[%clk 0:04:44.8]} 6... e6 {[%clk 0:04:39.3]}
7. Bg5 {[%clk 0:04:42.8]} 7... Bb4 {[%clk 0:04:35.1]} 8. O-O {[%clk 0:04:35.1]}
8... Bxc3 {[%clk 0:04:32.9]} 9. bxc3 {[%clk 0:04:35]} 9... Nxd4 {[%clk
0:04:31.8]} 10. cxd4 {[%clk 0:04:34.1]} 10... d5 {[%clk 0:04:30.2]} 11. exd5
{[%clk 0:04:32.6]} 11... exd5 {[%clk 0:04:30.1]} 12. Re1+ {[%clk 0:04:29.1]}
12... Be6 {[%clk 0:04:28.9]} 13. Bxf6 {[%clk 0:04:17.1]} 13... Qxf6 {[%clk
0:04:26.6]} 14. Bxd5 {[%clk 0:04:13.3]} 14... O-O {[%clk 0:04:24.5]} 15. Bxb7
{[%clk 0:04:05.2]} 15... Rae8 {[%clk 0:04:19.6]} 16. Bxa6 {[%clk 0:03:57.3]}
16... Bd5 {[%clk 0:04:13.6]} 17. Rxe8 {[%clk 0:03:54.7]} 17... Rxe8 {[%clk
0:04:10.1]} 18. Bb5 {[%clk 0:03:51]} 18... Qg6 {[%clk 0:04:07.8]} 19. f3 {[%clk
0:03:43]} 19... Re6 {[%clk 0:04:03.7]} 20. Qd3 {[%clk 0:03:32.7]} 20... Qg5
{[%clk 0:03:57.3]} 21. Bd7 {[%clk 0:03:24.4]} 21... Rf6 {[%clk 0:03:54.8]} 22.
Rb1 {[%clk 0:03:19.9]} 22... g6 {[%clk 0:03:51.3]} 23. Rb8+ {[%clk 0:03:17.2]}
23... Kg7 {[%clk 0:03:49.7]} 24. c4 {[%clk 0:03:03]} 24... Bxf3 {[%clk
0:03:46.6]} 25. Rb5 {[%clk 0:02:45]} 25... Qxg2# {[%clk 0:03:30]} 0-1

[Event "Live Chess"]
[Site "Chess.com"]
[Date "2024.06.01"]
[Round "-"]
[White "ogpin"]
[Black "Silverback7829"]
[Result "1-0"]
[WhiteElo "2200"]
[BlackElo "902"]
[TimeControl "300"]
[EndTime "15:31:00 PDT"]
[Termination "ogpin won by checkmate"]

1. a4 {[%clk 0:04:54.8]} 1... e5 {[%clk 0:04:54.5]} 2. Ra3 {[%clk 0:04:54.7]}
2... Nc6 {[%clk 0:04:51.8]} 3. g3 {[%clk 0:04:50.3]} 3... d6 {[%clk 0:04:49.1]}
4. Bg2 {[%clk 0:04:47.9]} 4... Nf6 {[%clk 0:04:47.3]} 5. b4 {[%clk 0:04:41.7]}
5... Be7 {[%clk 0:04:45.7]} 6. b5 {[%clk 0:04:40.8]} 6... Nd4 {[%clk 0:04:41.8]}
7. Bb2 {[%clk 0:04:39.5]} 7... O-O {[%clk 0:04:34.9]} 8. Nf3 {[%clk 0:04:34.8]}
8... Nxf3+ {[%clk 0:04:19.8]} 9. Rxf3 {[%clk 0:04:30.6]} 9... e4 {[%clk
0:04:14.1]} 10. Rf4 {[%clk 0:04:24.1]} 10... Be6 {[%clk 0:04:04.8]} 11. Rxe4
{[%clk 0:04:17.7]} 11... Nxe4 {[%clk 0:04:01.9]} 12. Bxe4 {[%clk 0:04:17.1]}
12... Rb8 {[%clk 0:03:52]} 13. O-O {[%clk 0:04:15.1]} 13... g6 {[%clk
0:03:49.3]} 14. Nc3 {[%clk 0:04:10.9]} 14... c6 {[%clk 0:03:37.3]} 15. d4 {[%clk
0:04:03.5]} 15... c5 {[%clk 0:03:22.6]} 16. dxc5 {[%clk 0:03:56.1]} 16... dxc5
{[%clk 0:03:19.3]} 17. Qa1 {[%clk 0:03:55.6]} 17... Bf5 {[%clk 0:02:58.1]} 18.
Bxf5 {[%clk 0:03:52.4]} 18... gxf5 {[%clk 0:02:55.8]} 19. Rd1 {[%clk 0:03:50.5]}
19... Qc7 {[%clk 0:02:49.2]} 20. Nd5 {[%clk 0:03:49.4]} 20... Qc8 {[%clk
0:02:33.8]} 21. Nxe7# {[%clk 0:03:47.1]} 1-0

[Event "Live Chess"]
[Site "Chess.com"]
[Date "2024.06.01"]
[Round "-"]
[White "CarmelJane"]
[Black "KeithArkell"]
[Result "0-1"]
[WhiteElo "2069"]
[BlackElo "2414"]
[TimeControl "300"]
[EndTime "15:31:10 PDT"]
[Termination "KeithArkell won by checkmate"]

1. e4 {[%clk 0:04:56.7]} 1... c6 {[%clk 0:04:59.1]} 2. d4 {[%clk 0:04:52.2]}
2... d5 {[%clk 0:04:58.4]} 3. e5 {[%clk 0:04:49.6]} 3... c5 {[%clk 0:04:57.7]}
4. dxc5 {[%clk 0:04:47.5]} 4... Nc6 {[%clk 0:04:57.1]} 5. Nf3 {[%clk 0:04:44.4]}
5... Bg4 {[%clk 0:04:56]} 6. Bb5 {[%clk 0:04:44]} 6... Qa5+ {[%clk 0:04:54.5]}
7. Nc3 {[%clk 0:04:43.6]} 7... Bxf3 {[%clk 0:04:53.8]} 8. Qxf3 {[%clk
0:04:42.3]} 8... e6 {[%clk 0:04:53.4]} 9. Be3 {[%clk 0:04:26.8]} 9... a6 {[%clk
0:04:38.8]} 10. Bxc6+ {[%clk 0:04:25.1]} 10... bxc6 {[%clk 0:04:38]} 11. a3
{[%clk 0:04:19.4]} 11... Bxc5 {[%clk 0:04:36.8]} 12. O-O {[%clk 0:03:59]} 12...
Bxe3 {[%clk 0:04:34.3]} 13. Qxe3 {[%clk 0:03:58.9]} 13... Ne7 {[%clk 0:04:33]}
14. Ne2 {[%clk 0:03:52.2]} 14... Nf5 {[%clk 0:04:28.4]} 15. Qg5 {[%clk
0:03:37.9]} 15... h5 {[%clk 0:04:22.8]} 16. c3 {[%clk 0:03:08.3]} 16... Qd8
{[%clk 0:04:18.7]} 17. Qf4 {[%clk 0:03:01.9]} 17... Qh4 {[%clk 0:04:15.5]} 18.
Qxh4 {[%clk 0:02:59.9]} 18... Nxh4 {[%clk 0:04:14.3]} 19. Nd4 {[%clk 0:02:59.8]}
19... Kd7 {[%clk 0:04:12.9]} 20. g3 {[%clk 0:02:59]} 20... c5 {[%clk 0:04:05.5]}
21. Nb3 {[%clk 0:02:54.8]} 21... c4 {[%clk 0:04:02.3]} 22. Nd4 {[%clk
0:02:52.4]} 22... Ng6 {[%clk 0:04:00.6]} 23. f4 {[%clk 0:02:50.9]} 23... Ne7
{[%clk 0:04:00]} 24. f5 {[%clk 0:02:49.2]} 24... Nxf5 {[%clk 0:03:56.2]} 25.
Nxf5 {[%clk 0:02:49.1]} 25... exf5 {[%clk 0:03:55.6]} 26. Rxf5 {[%clk
0:02:48.3]} 26... Ke6 {[%clk 0:03:55]} 27. Raf1 {[%clk 0:02:45]} 27... Raf8
{[%clk 0:03:53.8]} 28. Rg5 {[%clk 0:02:43.6]} 28... Rh7 {[%clk 0:03:50.1]} 29.
Rgf5 {[%clk 0:02:25.6]} 29... a5 {[%clk 0:03:44.8]} 30. R1f4 {[%clk 0:02:13.4]}
30... Rh6 {[%clk 0:03:42.4]} 31. Kf2 {[%clk 0:02:11.5]} 31... a4 {[%clk
0:03:35.6]} 32. Ke3 {[%clk 0:02:09.6]} 32... h4 {[%clk 0:03:30]} 33. g4 {[%clk
0:01:40.2]} 33... h3 {[%clk 0:03:27.8]} 34. g5 {[%clk 0:01:39.2]} 34... Rh4
{[%clk 0:03:11.7]} 35. Rxf7 {[%clk 0:01:29.2]} 35... Rxf4 {[%clk 0:03:09.7]} 36.
Rxf4 {[%clk 0:01:27.5]} 36... Rb8 {[%clk 0:03:08.2]} 37. Rf2 {[%clk 0:01:09.8]}
37... Kxe5 {[%clk 0:03:06.3]} 38. g6 {[%clk 0:01:05.3]} 38... Rb6 {[%clk
0:02:59.7]} 39. Rf3 {[%clk 0:00:51.8]} 39... Rxb2 {[%clk 0:02:57.4]} 40. Rxh3
{[%clk 0:00:51.4]} 40... Rc2 {[%clk 0:02:55.5]} 41. Rh5+ {[%clk 0:00:47.7]}
41... Kd6 {[%clk 0:02:51.6]} 42. Kd4 {[%clk 0:00:47.1]} 42... Rd2+ {[%clk
0:02:50.5]} 43. Ke3 {[%clk 0:00:46.1]} 43... Rd3+ {[%clk 0:02:49.3]} 44. Ke2
{[%clk 0:00:43.8]} 44... Ke6 {[%clk 0:02:46.5]} 45. Rh8 {[%clk 0:00:35.6]} 45...
Rxc3 {[%clk 0:02:43.8]} 46. Rf8 {[%clk 0:00:33.2]} 46... d4 {[%clk 0:02:36.7]}
47. Rf7 {[%clk 0:00:32]} 47... Rc2+ {[%clk 0:02:34.7]} 48. Kd1 {[%clk 0:00:31]}
48... Rg2 {[%clk 0:02:28.7]} 49. Rxg7 {[%clk 0:00:30]} 49... c3 {[%clk 0:02:28]}
50. h4 {[%clk 0:00:22]} 50... d3 {[%clk 0:02:26.8]} 51. Rc7 {[%clk 0:00:17.8]}
51... Rg1# {[%clk 0:02:25.8]} 0-1